bitfinex/quotes_ETHUSD_20250903
["timestamp","ask_amount","ask_price","bid_price","bid_amount"]
[1756895461621,6.07792328,4374.6,4374.1,0.004]
[1756895461833,10.87684775,4374.2,4374.1,0.004]
[1756895462025,21.63886318,4374.2,4374.1,0.004]
[1756895462321,22.68306318,4374.2,4374.1,1e-08]
[1756895462689,17.88434775,4374.2,4374.1,1e-08]
[1756895464829,22.68306318,4374.2,4374.1,1e-08]
[1756895465134,10.87705682,4373.8,4373.7,1e-08]
[1756895465428,14.89545682,4373.8,4373.7,1e-08]
[1756895465611,16.12555682,4373.8,4373.7,1e-08]
[1756895465815,2.28681195,4372.9,4372.8,0.022]
[1756895466000,15.86192738,4372.9,4372.8,0.022]
[1756895466198,16.21318448,4372.9,4372.8,0.022]
[1756895467016,16.96908448,4372.9,4372.8,0.022]
[1756895467212,17.44328448,4372.9,4372.8,0.022]
[1756895467530,16.96908448,4372.9,4372.8,0.022]
[1756895467730,18.34703257,4372.9,4372.8,0.022]
[1756895469433,18.34623257,4372.9,4372.8,0.022]
[1756895473196,18.23448448,4372.9,4372.8,0.022]
[1756895473403,4.39526905,4372.9,4372.8,0.7945]
[1756895473607,2.28601195,4372.9,4372.8,1.2443]
[1756895473915,6.18901195,4372.9,4372.8,1.2443]
[1756895474100,10.98772738,4372.9,4372.8,0.5067]
[1756895474431,13.98772738,4372.9,4372.8,0.3098]
[1756895474632,15.79097421,4372.9,4372.8,0.3098]
[1756895475617,15.79097421,4372.9,4372.8,0.7945]
[1756895475618,5.28601195,4372.9,4372.8,0.7945]
[1756895475819,9.18901195,4372.9,4372.8,1.2443]
[1756895476041,9.18901195,4372.9,4372.8,0.3098]
[1756895477237,9.48931195,4372.9,4372.8,0.022]
[1756895477651,9.48931195,4372.9,4372.8,0.3098]
[1756895477652,9.18901195,4372.9,4372.8,0.3098]
[1756895477803,7.20357778,4372.9,4372.8,0.3098]
[1756895478003,11.10657778,4372.9,4372.8,0.7945]
[1756895478204,5.28601195,4372.9,4372.8,0.7985]
[1756895478529,10.08472738,4372.9,4372.8,1.2483]
[1756895478833,13.98772738,4372.9,4372.8,1.2483]
[1756895479006,13.98772738,4372.9,4372.8,0.3138]
[1756895479424,10.08472738,4372.9,4372.8,0.3138]
[1756895479735,15.44914421,4372.9,4372.8,0.026]
[1756895479921,15.44814421,4372.9,4372.8,0.3138]
[1756895481519,11.54614421,4372.9,4372.8,0.3138]
[1756895481734,15.44814421,4372.9,4372.8,0.3138]
[1756895482613,15.74844421,4372.9,4372.8,0.026]
[1756895483111,16.20404421,4372.9,4372.8,0.026]
[1756895483530,16.31844421,4372.9,4372.8,0.026]
[1756895484038,12.41644421,4372.9,4372.8,0.026]
[1756895484360,15.56254421,4372.9,4372.8,0.026]
[1756895484533,15.86284421,4372.9,4372.8,0.026]
[1756895484713,16.31844421,4372.9,4372.8,0.026]
[1756895484913,17.58464421,4372.9,4372.8,0.026]
[1756895485518,2.28691655,4372.7,4372.3,0.004]
[1756895485718,10.9459264,4372.7,4372.3,0.004]
[1756895485921,12.1760264,4372.7,4372.3,0.004]
[1756895488253,12.1760264,4372.7,4372.6,1e-08]
[1756895493740,12.1752264,4372.7,4372.6,1e-08]
[1756895496667,6.2521264,4372.7,4372.6,0.77690001]
[1756895496955,10.1511264,4372.7,4372.6,0.77690001]
[1756895498856,5.28611655,4372.7,4372.6,0.77690001]
[1756895499044,10.94411655,4372.7,4372.6,1.20760001]
[1756895500765,7.04511655,4372.7,4372.6,1.20760001]
[1756895500926,10.94411655,4372.7,4372.6,0.77690001]
[1756895501131,10.94411655,4372.7,4372.6,1.20760001]
[1756895501355,10.94311655,4372.7,4372.6,1.20760001]
[1756895501668,10.82801655,4372.7,4372.6,1.20760001]
[1756895503552,6.93001655,4372.7,4372.6,1.20760001]
[1756895503852,6.93001655,4372.7,4372.6,0.77690001]
[1756895504055,10.82801655,4372.7,4372.6,1.20760001]
[1756895504668,10.82801655,4372.7,4372.6,0.77690001]
[1756895505045,15.62673198,4372.7,4372.6,0.29400001]
[1756895505365,17.42954637,4372.7,4372.6,1e-08]
[1756895505562,18.51974637,4372.7,4372.6,1e-08]
[1756895505763,18.98904637,4372.7,4372.6,1e-08]
[1756895506066,19.44674637,4372.7,4372.6,1e-08]
[1756895506266,18.22154637,4372.7,4372.6,1e-08]
[1756895506467,2.40141195,4372.9,4372.6,1.20760001]
[1756895506468,0.1154,4372.9,4372.6,1.20760001]
[1756895506666,0.1154,4372.9,4372.7,0.9136]
[1756895506860,2.40223617,4372.9,4372.7,0.9136]
[1756895507167,2.40223617,4372.9,4372.6,0.29400001]
[1756895507168,2.40223617,4372.9,4372.8,1.2076]
[1756895507371,2.40223617,4372.9,4372.8,0.7769]
[1756895507570,2.40223617,4372.9,4372.8,1.2076]
[1756895508549,6.29923617,4372.9,4372.8,1.2076]
[1756895509459,6.29923617,4372.9,4372.8,0.7769]
[1756895509662,6.29923617,4372.9,4372.8,0.294]
[1756895509846,2.28691655,4372.7,4372.6,1e-08]
[1756895510049,6.18291655,4372.7,4372.6,1e-08]
[1756895510247,6.18291655,4372.7,4372.6,0.29400001]
[1756895510942,3.896,4372.7,4372.6,0.77690001]
[1756895511145,6.18291655,4372.7,4372.6,0.77690001]
[1756895511689,6.18291655,4372.7,4372.6,1.20760001]
[1756895512189,6.18291655,4372.7,4372.6,0.77690001]
[1756895512386,6.18291655,4372.7,4372.6,0.29400001]
[1756895512548,2.28691655,4372.7,4372.6,0.29400001]
[1756895512746,6.18291655,4372.7,4372.6,0.29400001]
[1756895513546,2.4022321,4372.9,4372.6,0.77690001]
[1756895513752,6.18286425,4372.8,4372.7,0.9136]
[1756895513977,2.28691655,4372.7,4372.6,1e-08]
[1756895514272,6.18287898,4372.8,4372.7,0.294]
[1756895514474,6.18287898,4372.8,4372.7,0.7769]
[1756895514649,6.18287898,4372.8,4372.7,1.2076]
[1756895514849,6.18287898,4372.8,4372.7,0.294]
[1756895515068,2.28691655,4372.7,4372.6,1e-08]
[1756895515446,2.28691655,4372.7,4372.6,0.29400001]
[1756895515654,6.18191655,4372.7,4372.6,0.29400001]
[1756895516783,6.18191655,4372.7,4372.6,1e-08]
[1756895516784,6.48011655,4372.7,4372.6,1e-08]
[1756895518195,6.47931655,4372.7,4372.6,1e-08]
[1756895518884,6.94861655,4372.7,4372.6,1e-08]
[1756895519256,6.47931655,4372.7,4372.6,1e-08]
[1756895519986,6.18111655,4372.7,4372.6,1e-08]
[1756895520186,2.28611655,4372.7,4372.6,0.29990001]
[1756895520481,2.40222797,4372.9,4372.6,1.23060001]
[1756895520781,2.40131655,4372.7,4372.6,0.29990001]
[1756895521767,2.40131655,4372.7,4372.6,1e-08]
[1756895521993,2.40131655,4372.7,4372.6,0.29990001]
[1756895522663,6.29531655,4372.7,4372.6,0.29990001]
[1756895523279,0.001,4372.9,4372.6,1.23060001]
[1756895523488,0.1144,4372.7,4372.6,0.29990001]
[1756895523702,0.1144,4372.7,4372.6,0.55900118]
[1756895523866,4.0084,4372.9,4372.6,0.55900118]
[1756895524066,4.0084,4372.9,4372.7,0.4447]
[1756895524271,4.0084,4372.9,4372.8,1.2306]
[1756895525186,0.001,4372.9,4372.8,9.38138081]
[1756895525357,0.001,4372.9,4372.8,9.49578081]
[1756895527087,0.001,4372.9,4372.8,3.63186425]
[1756895527464,0.001,4372.9,4372.8,4.22374626]
[1756895527690,0.001,4372.9,4372.8,8.11674626]
[1756895528194,0.001,4372.9,4372.8,8.11574626]
[1756895530195,0.001,4372.9,4372.8,4.22374626]
[1756895530399,0.001,4372.9,4372.8,8.11574626]
[1756895532595,0.001,4372.9,4372.8,11.90774626]
[1756895534607,0.001,4372.9,4372.8,11.90674626]
[1756895538367,0.001,4372.9,4372.8,16.14674626]
[1756895539275,1e-08,4372.9,4372.8,16.14674626]
[1756895541468,1e-08,4372.9,4372.8,11.90674626]
[1756895542907,0.00020001,4373.4,4373.3,2.28660279]
[1756895543069,0.00020001,4373.4,4373.3,12.27732197]
[1756895543270,0.31610001,4373.4,4373.3,8.38832197]
[1756895543604,0.79110001,4373.4,4373.3,12.39172197]
[1756895543900,0.31610001,4373.4,4373.3,12.39172197]
[1756895544270,0.00020001,4373.4,4373.3,13.17762197]
[1756895544493,0.00020001,4373.4,4373.3,13.62232197]
[1756895545002,0.00020001,4373.4,4373.3,13.17762197]
[1756895545402,0.31610001,4373.4,4373.3,12.39172197]
[1756895545622,1.27600001,4373.4,4373.3,8.04700279]
[1756895547121,1.27600001,4373.4,4373.3,4.15900279]
[1756895547274,1.27600001,4373.4,4373.3,8.04700279]
[1756895547475,0.79110001,4373.4,4373.3,8.04700279]
[1756895548768,1.27600001,4373.4,4373.3,8.04700279]
[1756895549703,0.79110001,4373.4,4373.3,8.04700279]
[1756895550617,1.23390001,4373.4,4373.3,0.1144]
[1756895550817,1.23390001,4373.4,4373.3,2.28660279]
[1756895552078,0.77740001,4373.4,4373.3,2.28660279]
[1756895552377,0.00020001,4373.4,4373.3,6.43317165]
[1756895552577,0.00020001,4373.4,4373.3,10.03027165]
[1756895554515,0.00020001,4373.4,4373.3,13.91727165]
[1756895554881,0.00020001,4373.4,4373.3,9.56857165]
[1756895555104,0.00020001,4373.4,4373.3,12.98457165]
[1756895555308,0.00020001,4373.4,4373.3,8.30557165]
[1756895555478,0.31280001,4373.4,4373.3,11.04600279]
[1756895555683,0.31280001,4373.4,4373.3,8.04600279]
[1756895556411,0.00020001,4373.4,4373.3,8.04600279]
[1756895556622,0.00020001,4373.4,4373.3,8.33500279]
[1756895557403,0.00020001,4373.4,4373.3,13.05970279]
[1756895557606,0.00020001,4373.4,4373.3,15.18073331]
[1756895561814,0.00020001,4373.4,4373.3,10.83203331]
[1756895562016,0.00020001,4373.4,4373.3,15.17973331]
[1756895562229,0.00020001,4373.4,4373.3,7.36103331]
[1756895562531,0.00020001,4373.4,4373.3,18.45991935]
[1756895562696,0.00020001,4373.4,4373.3,18.92161935]
[1756895564636,0.00020001,4373.4,4373.3,14.57491935]
[1756895564928,0.00020001,4373.4,4373.3,18.45991935]
[1756895566297,0.00020001,4373.4,4373.3,13.81491935]
[1756895566498,0.31280001,4373.4,4373.3,19.47027975]
[1756895566961,1.23060001,4373.4,4373.3,19.47027975]
[1756895567299,1.22980001,4373.4,4373.3,19.47027975]
[1756895567505,0.77330001,4373.4,4373.3,19.47027975]
[1756895568433,0.31200001,4373.4,4373.3,19.47027975]
[1756895568641,0.31200001,4373.4,4373.3,15.58527975]
[1756895568799,0.31200001,4373.4,4373.3,16.46927975]
[1756895569123,0.77330001,4373.4,4373.3,19.46927975]
[1756895569905,1.22980001,4373.4,4373.3,12.81336319]
[1756895570321,1.22980001,4373.4,4373.3,11.04300279]
[1756895570515,1.22980001,4373.4,4373.3,4.15900279]
[1756895570839,1.22980001,4373.4,4373.3,8.04300279]
[1756895574248,1.22980001,4373.4,4373.3,5.642]
[1756895574750,1.22980001,4373.4,4373.3,7.92860279]
[1756895575636,1.22980001,4373.4,4373.3,5.642]
[1756895575846,1.22980001,4373.4,4373.3,7.92860279]
[1756895578458,1.22980001,4373.4,4373.3,5.642]
[1756895579136,1.34420001,4373.4,4373.1,0.004]
[1756895579337,1.34420001,4373.4,4373.2,3.883]
[1756895579537,0.9352,4373.3,4373.2,3.883]
[1756895579851,1.2321,4373.3,4373.2,3.883]
[1756895580327,1.2321,4373.3,4373.2,6.16965508]
[1756895581120,1.2321,4373.3,4373.2,3.883]
[1756895581449,1.2321,4373.3,4373.1,2.29066955]
[1756895581650,0.9352,4373.2,4373.1,0.004]
[1756895581847,0.9352,4373.2,4373.1,6.17370737]
[1756895582029,1.2321,4373.2,4373.1,6.17370737]
[1756895583617,1.2321,4373.2,4373.1,3.887]
[1756895583814,1.2321,4373.2,4373.1,0.004]
[1756895584019,1.2321,4373.2,4373.1,3.887]
[1756895584219,1.2321,4373.2,4373.1,0.004]
[1756895584497,1.2321,4373.2,4373.1,6.17370737]
[1756895584666,1.2321,4373.2,4373.1,3.887]
[1756895584819,1.35541,4373.2,4373.1,3.887]
[1756895585153,3.75646508,4373.2,4373.1,0.004]
[1756895585564,8.553748,4373.2,4373.1,0.004]
[1756895586055,3.75646508,4373.2,4373.1,0.004]
[1756895587620,6.75646508,4373.2,4373.1,0.004]
[1756895588431,7.54846508,4373.2,4373.1,0.004]
[1756895591632,7.54766508,4373.2,4373.1,0.004]
[1756895593148,11.42966508,4373.2,4373.1,0.004]
[1756895594668,7.87614717,4372.8,4372.7,0.004]
[1756895594977,16.18884123,4372.8,4372.7,0.004]
[1756895595132,17.42094123,4372.8,4372.7,0.004]
[1756895595440,17.51263629,4372.8,4372.7,0.004]
[1756895596168,13.63063629,4372.8,4372.7,0.004]
[1756895596341,17.51263629,4372.8,4372.7,0.004]
[1756895596871,13.63063629,4372.8,4372.7,0.004]
[1756895597074,17.51263629,4372.8,4372.7,0.004]
[1756895598189,17.51263629,4372.8,4372.7,1e-08]
[1756895600373,22.30991921,4372.8,4372.7,1e-08]
[1756895600873,3.0792827,4372.0,4370.8,0.5049]
[1756895601074,16.82549389,4372.0,4370.8,0.022]
[1756895601272,18.17199389,4372.0,4370.8,0.022]
[1756895601570,18.2637064,4372.0,4370.8,0.022]
[1756895603291,18.2637064,4372.0,4371.9,1e-08]
[1756895604107,6.07933502,4371.9,4371.8,1e-08]
[1756895604409,7.7088332,4371.9,4371.8,1e-08]
[1756895604563,8.9409332,4371.9,4371.8,1e-08]
[1756895605898,11.7052332,4371.9,4371.8,1e-08]
[1756895606112,12.62051612,4371.9,4371.8,1e-08]
[1756895606260,16.50251612,4371.9,4371.8,0.30320001]
[1756895606465,16.79941612,4371.9,4371.8,1e-08]
[1756895607097,1.74389818,4371.9,4371.8,0.78610001]
[1756895607278,3.9964,4371.9,4371.8,1.25830001]
[1756895607479,0.1144,4371.9,4371.8,1.25830001]
[1756895607667,3.9964,4371.9,4371.8,1.25830001]
[1756895608583,6.28373502,4371.9,4371.8,1.25830001]
[1756895609188,7.1408339,4371.9,4371.8,0.30320001]
[1756895609371,10.4377339,4371.9,4371.8,1e-08]
[1756895609571,10.8957339,4371.9,4371.8,1e-08]
[1756895610823,8.0178339,4371.9,4371.8,1e-08]
[1756895611037,8.0178339,4371.9,4371.8,1.21610001]
[1756895611038,8.04173502,4371.9,4371.8,1.21610001]
[1756895611417,8.04173502,4371.9,4371.8,0.28810001]
[1756895611724,11.81223502,4371.9,4371.8,1e-08]
[1756895612334,11.35423502,4371.9,4371.8,1e-08]
[1756895615131,11.81223502,4371.9,4371.8,1e-08]
[1756895615297,13.7706834,4371.9,4371.8,1e-08]
[1756895615497,14.2250834,4371.9,4371.8,1e-08]
[1756895615803,15.0170834,4371.9,4371.8,1e-08]
[1756895616216,5.28658734,4371.8,4371.7,1e-08]
[1756895616405,5.74098734,4371.8,4371.7,1e-08]
[1756895616727,7.93006947,4371.8,4371.7,1e-08]
[1756895616919,8.72206947,4371.8,4371.7,1e-08]
[1756895617836,3.07959665,4371.4,4371.3,1e-08]
[1756895618037,3.07959665,4371.4,4370.8,1e-08]
[1756895618038,0.792,4370.9,4370.8,1e-08]
[1756895618197,21.74132417,4370.9,4370.8,1e-08]
[1756895618527,24.7237211,4370.9,4370.8,1e-08]
[1756895618727,15.93388963,4370.9,4370.8,1e-08]
[1756895619028,19.81488963,4370.9,4370.8,1e-08]
[1756895619227,24.72831952,4370.9,4370.8,1e-08]
[1756895621020,19.9310366,4370.9,4370.8,1e-08]
[1756895621402,15.13375368,4370.9,4370.8,1e-08]
[1756895622437,2.28827715,4370.1,4370.0,1.26e-06]
[1756895622647,8.50032534,4370.1,4370.0,1.26e-06]
[1756895623045,9.38406562,4370.1,4370.0,1.26e-06]
[1756895623214,12.38406562,4370.1,4370.0,1.26e-06]
[1756895624744,12.69656562,4370.1,4370.0,1.26e-06]
[1756895625402,12.38406562,4370.1,4370.0,1.26e-06]
[1756895625602,8.50306562,4370.1,4370.0,0.76470126]
[1756895625833,11.13441743,4370.1,4370.0,1.21610126]
[1756895626547,11.13441743,4370.1,4370.0,0.76470126]
[1756895626745,7.25341743,4370.1,4370.0,0.76470126]
[1756895626948,11.13441743,4370.1,4370.0,0.76470126]
[1756895627744,11.13441743,4370.1,4370.0,1.21610126]
[1756895627954,11.13441743,4370.1,4370.0,0.76470126]
[1756895629457,11.13441743,4370.1,4370.0,0.28810126]
[1756895630540,12.78917965,4370.1,4370.0,1.26e-06]
[1756895631053,12.47567965,4370.1,4370.0,1.26e-06]
[1756895631254,11.13341743,4370.1,4370.0,1.26e-06]
[1756895631959,11.13341743,4370.1,4370.0,0.28810126]
[1756895632655,11.13341743,4370.1,4370.0,1.26e-06]
[1756895633035,11.90391743,4370.1,4370.0,1.26e-06]
[1756895633247,11.13341743,4370.1,4370.0,0.28810126]
[1756895633559,11.13341743,4370.1,4370.0,1.26e-06]
[1756895633864,1.96514028,4370.1,4370.0,0.76870126]
[1756895634072,3.9954,4370.1,4370.0,1.22010126]
[1756895634230,2.28927715,4370.1,4370.0,1.34431139]
[1756895634604,3.881,4370.1,4370.0,1.34431139]
[1756895634938,0.001,4370.1,4370.0,1.34431139]
[1756895636029,3.881,4370.1,4370.0,1.34431139]
[1756895636574,0.001,4370.1,4370.0,1.34431139]
[1756895636728,3.881,4370.1,4370.0,1.34431139]
[1756895637967,0.001,4370.1,4370.0,1.34431139]
[1756895638122,2.28927715,4370.1,4370.0,0.76870126]
[1756895638328,2.28927715,4370.1,4370.0,0.29210126]
[1756895638529,2.28927715,4370.1,4370.0,0.74350126]
[1756895638856,6.16827715,4370.1,4370.0,1.22010126]
[1756895639365,6.16827715,4370.1,4370.0,0.76870126]
[1756895639860,3.88,4370.1,4370.0,0.76870126]
[1756895640058,3.88,4370.1,4370.0,1.22040126]
[1756895640267,6.16827715,4370.1,4370.0,1.22040126]
[1756895640629,6.16747715,4370.1,4370.0,0.76870126]
[1756895641056,3.8792,4370.1,4370.0,1.22040126]
[1756895641390,0.0002,4370.1,4370.0,1.34464139]
[1756895643173,0.0002,4370.1,4370.0,3.6329709]
[1756895643756,0.0002,4370.1,4370.0,7.4249709]
[1756895644284,0.0002,4370.1,4370.0,13.40728636]
[1756895648794,0.0002,4370.1,4370.0,17.28528636]
[1756895650762,0.0002,4370.1,4370.0,12.95558636]
[1756895650964,0.0002,4370.1,4370.0,17.28428636]
[1756895652290,0.0002,4370.1,4370.0,10.1726709]
[1756895652466,0.0002,4370.1,4370.0,5.8190709]
[1756895652673,0.2945,4370.1,4370.0,0.11840126]
[1756895652873,1.2168,4370.1,4370.0,0.00400126]
[1756895653608,0.2945,4370.1,4370.0,0.00400126]
[1756895653991,1.2168,4370.1,4370.0,0.00400126]
[1756895656606,3.50507715,4370.1,4370.0,0.00400126]
[1756895656780,3.86702487,4370.1,4370.0,0.00400126]
[1756895657111,1.57874772,4370.1,4370.0,0.00400126]
[1756895657508,3.86702487,4370.1,4370.0,0.00400126]
[1756895659101,1.57874772,4370.1,4370.0,0.00400126]
[1756895659381,0.7548,4370.1,4370.0,0.00400126]
[1756895660212,0.0002,4370.1,4370.0,3.06263077]
[1756895660598,0.2945,4370.1,4370.0,0.00400126]
[1756895660787,0.7548,4370.1,4370.0,0.00400126]
[1756895663514,1.2168,4370.1,4370.0,0.00400126]
[1756895663713,3.86702014,4370.1,4370.0,0.00400126]
[1756895664294,1.57874299,4370.1,4370.0,0.00400126]
[1756895665014,0.2945,4370.1,4370.0,0.00400126]
[1756895665312,1.216,4370.1,4370.0,0.00400126]
[1756895667014,0.754,4370.1,4370.0,0.00400126]
[1756895668620,0.462,4370.5,4370.0,0.00400126]
[1756895668915,3.9904,4370.2,4370.0,0.29670126]
[1756895669121,0.2943,4370.1,4370.0,0.00400126]
[1756895669718,1.2294,4370.1,4370.0,0.00400126]
[1756895669928,0.2953,4370.1,4370.0,0.00400126]
[1756895670109,0.001,4370.1,4370.0,0.00400126]
[1756895670498,0.315,4370.1,4370.0,0.00400126]
[1756895670695,0.7799,4370.1,4370.0,0.00400126]
[1756895671187,3.06817715,4370.1,4370.0,0.00400126]
[1756895671390,1.2491,4370.1,4370.0,0.00400126]
[1756895672023,3.53737715,4370.1,4370.0,0.00400126]
[1756895672411,1.2491,4370.1,4370.0,0.00400126]
[1756895673527,3.53737715,4370.1,4370.0,0.00400126]
[1756895673719,4.5189757,4370.1,4370.0,0.00400126]
[1756895674910,0.315,4370.1,4370.0,0.00400126]
[1756895675106,0.7799,4370.1,4370.0,0.00400126]
[1756895675907,0.315,4370.1,4370.0,0.00400126]
[1756895676101,0.001,4370.1,4370.0,0.00400126]
[1756895676295,4.19,4370.1,4370.0,0.00400126]
[1756895676500,6.94317715,4370.1,4370.0,0.00400126]
[1756895676826,4.47195268,4370.1,4370.0,0.00400126]
[1756895677033,8.34695268,4370.1,4370.0,0.00400126]
[1756895680098,6.05867553,4370.1,4370.0,0.00400126]
[1756895680531,8.34695268,4370.1,4370.0,0.00400126]
[1756895681036,6.05867553,4370.1,4370.0,0.00400126]
[1756895681530,6.15040066,4370.1,4370.0,0.00400126]
[1756895681734,5.21630066,4370.1,4370.0,0.00400126]
[1756895681903,5.68120066,4370.1,4370.0,0.00400126]
[1756895682712,8.43867781,4370.1,4370.0,0.00400126]
[1756895682919,11.43867781,4370.1,4370.0,0.00400126]
[1756895686344,12.23067781,4370.1,4370.0,0.00400126]
[1756895687736,8.35567781,4370.1,4370.0,0.00400126]
[1756895687910,12.22967781,4370.1,4370.0,0.00400126]
[1756895688310,8.35567781,4370.1,4370.0,0.00400126]
[1756895688740,12.22967781,4370.1,4370.0,0.00400126]
[1756895689038,0.09272513,4370.1,4370.0,0.29770126]
[1756895689238,6.25500228,4370.1,4370.0,0.29770126]
[1756895689555,6.25500228,4370.1,4370.0,0.00400126]
[1756895689709,2.38020228,4370.1,4370.0,0.00400126]
[1756895689910,6.56820228,4370.1,4370.0,0.00400126]
[1756895690227,6.25420228,4370.1,4370.0,0.00400126]
[1756895690537,6.25420228,4370.1,4370.0,0.78180126]
[1756895690538,3.8742,4370.1,4370.0,0.78180126]
[1756895691042,3.96592072,4370.1,4370.0,0.29770126]
[1756895691338,6.25419787,4370.1,4370.0,0.00400126]
[1756895691702,6.56819787,4370.1,4370.0,0.00400126]
[1756895692208,7.03309787,4370.1,4370.0,0.00400126]
[1756895692604,7.9652275,4370.1,4370.0,0.00400126]
[1756895692843,8.4344275,4370.1,4370.0,0.00400126]
[1756895696010,7.9652275,4370.1,4370.0,0.00400126]
[1756895696212,8.4344275,4370.1,4370.0,0.00400126]
[1756895697440,13.24166087,4370.1,4370.0,0.00400126]
[1756895698543,14.03366087,4370.1,4370.0,0.00400126]
[1756895699047,14.14806087,4370.1,4370.0,0.00400126]
[1756895699924,8.5488275,4370.1,4370.0,0.00400126]
[1756895700223,7.6147275,4370.1,4370.0,0.00400126]
[1756895700745,8.0865275,4370.1,4370.0,0.00400126]
[1756895700909,8.5391275,4370.1,4370.0,0.00400126]
[1756895704334,11.5391275,4370.1,4370.0,0.00400126]
[1756895705021,11.0865275,4370.1,4370.0,0.00400126]
[1756895705429,7.2125275,4370.1,4370.0,0.00400126]
[1756895705635,10.6137275,4370.1,4370.0,0.00400126]
[1756895705947,6.7407275,4370.1,4370.0,0.00400126]
[1756895706149,10.6137275,4370.1,4370.0,0.00400126]
[1756895706955,11.0855275,4370.1,4370.0,0.00400126]
[1756895707252,0.20632072,4370.1,4370.0,0.77730126]
[1756895707452,3.9876,4370.1,4370.0,0.77730126]
[1756895707831,3.9876,4370.1,4370.0,0.00400126]
[1756895708034,3.9876,4370.1,4370.0,0.29240126]
[1756895708220,3.9876,4370.1,4370.0,0.77730126]
[1756895708965,0.1146,4370.1,4370.0,1.33705139]
[1756895709352,3.9876,4370.1,4370.0,3.6253809]
[1756895709721,3.9876,4370.1,4370.0,1.33705139]
[1756895709961,0.1146,4370.1,4370.0,0.77730126]
[1756895710147,3.9876,4370.1,4370.0,0.77730126]
[1756895711147,3.9876,4370.1,4370.0,1.21350126]
[1756895711727,3.9876,4370.1,4370.0,0.77730126]
[1756895711961,3.9876,4370.1,4370.0,0.29240126]
[1756895712253,3.9876,4370.1,4370.0,0.77730126]
[1756895713050,0.0002,4370.1,4370.0,4.03944563]
[1756895713251,0.0002,4370.1,4370.0,4.15384563]
[1756895714045,0.1154,4370.6,4370.0,1.75111612]
[1756895714046,0.001,4370.6,4370.0,1.75111612]
[1756895714244,0.1154,4370.6,4370.1,0.9211]
[1756895714455,0.1154,4370.6,4370.5,0.2884]
[1756895714956,0.1154,4370.6,4370.5,0.7733]
[1756895715143,0.1154,4370.6,4370.5,1.2095]
[1756895715343,0.1154,4370.6,4370.5,0.7733]
[1756895716746,0.001,4370.6,4370.5,0.65681663]
[1756895717563,0.001,4370.6,4370.5,1.14171663]
[1756895718799,0.001,4370.6,4370.5,0.65681663]
[1756895719078,0.001,4370.6,4370.2,0.18655161]
[1756895719279,0.001,4370.6,4370.5,0.2884]
[1756895719874,0.001,4370.6,4370.5,0.7733]
[1756895720069,0.001,4370.6,4370.5,1.2095]
[1756895720286,0.001,4370.6,4370.5,3.06136772]
[1756895720463,0.001,4370.6,4370.5,0.7733]
[1756895720656,0.001,4370.6,4370.5,0.2884]
[1756895722354,0.001,4370.6,4370.5,0.61360222]
[1756895722556,0.001,4370.6,4370.5,1.53470222]
[1756895722759,0.001,4370.6,4370.5,1.09850222]
[1756895723274,0.001,4370.6,4370.5,0.61360222]
[1756895723645,0.001,4370.6,4370.5,0.2884]
[1756895726061,0.001,4370.6,4370.5,0.7733]
[1756895726380,0.001,4370.6,4370.3,0.004]
[1756895732002,0.3087,4370.4,4370.3,0.004]
[1756895732171,0.3373015,4370.4,4370.3,0.004]
[1756895732372,11.00506507,4370.4,4370.3,0.004]
[1756895732591,10.97646357,4370.4,4370.3,0.004]
[1756895735110,15.78369694,4370.4,4370.3,0.004]
[1756895737593,10.97646357,4370.4,4370.3,0.004]
[1756895737994,15.78369694,4370.4,4370.3,0.004]
[1756895738470,15.78289694,4370.4,4370.3,0.004]
[1756895740375,11.91289694,4370.4,4370.3,0.004]
[1756895740608,15.78289694,4370.4,4370.3,0.004]
[1756895742297,15.89729694,4370.4,4370.3,0.004]
[1756895744079,11.08069694,4370.4,4370.3,0.004]
[1756895744284,15.41119694,4370.4,4370.3,0.004]
[1756895744685,15.89729694,4370.4,4370.3,0.004]
[1756895750294,16.68929694,4370.4,4370.3,0.004]
[1756895751918,0.792,4370.1,4369.8,0.026]
[1756895752116,2.28820792,4370.3,4369.8,0.026]
[1756895752117,11.00201525,4369.9,4369.8,0.026]
[1756895752318,15.17971525,4369.9,4369.8,0.026]
[1756895752495,15.17971525,4369.9,4369.6,0.004]
[1756895752496,3.08059137,4369.5,4369.4,1e-08]
[1756895752817,16.54543213,4369.5,4369.4,1e-08]
[1756895753120,18.59229085,4369.5,4369.4,1e-08]
[1756895753315,18.8207403,4369.5,4369.4,1e-08]
[1756895753483,2.28916765,4368.4,4368.3,0.46660001]
[1756895753684,6.15816765,4368.4,4367.8,0.022]
[1756895753915,6.15816765,4368.4,4368.3,0.2864]
[1756895754116,2.28932487,4368.1,4367.8,0.022]
[1756895754289,5.2894297,4367.9,4367.8,0.022]
[1756895754492,10.40536307,4367.9,4367.8,0.022]
[1756895754724,7.3367297,4367.9,4367.8,0.022]
[1756895755917,11.2057297,4367.9,4367.8,0.022]
[1756895756221,13.29130983,4367.9,4367.8,0.022]
[1756895756804,13.29130983,4367.9,4367.8,0.026]
[1756895758125,12.1822432,4367.9,4367.8,0.026]
[1756895758330,12.1822432,4367.9,4367.8,0.3124]
[1756895758618,16.0522432,4367.9,4367.8,0.3124]
[1756895758988,16.3609432,4367.9,4367.8,0.026]
[1756895759190,17.3075432,4367.9,4367.8,0.026]
[1756895759387,18.0995432,4367.9,4367.8,0.026]
[1756895759600,19.17265708,4367.9,4367.8,0.026]
[1756895760320,18.22605708,4367.9,4367.8,0.026]
[1756895760522,9.1594297,4367.9,4367.8,0.8174]
[1756895761396,5.2894297,4367.9,4367.8,0.8174]
[1756895761594,5.2894297,4367.9,4367.8,0.3237]
[1756895762006,9.1594297,4367.9,4367.8,0.3237]
[1756895762424,12.32880597,4367.9,4367.8,0.026]
[1756895763087,12.32800597,4367.9,4367.8,0.026]
[1756895763512,7.97510597,4367.9,4367.8,0.026]
[1756895763823,11.84510597,4367.9,4367.8,0.026]
[1756895764391,12.32800597,4367.9,4367.8,0.026]
[1756895765142,8.45800597,4367.9,4367.8,0.026]
[1756895765293,12.44240597,4367.9,4367.8,0.026]
[1756895765493,8.57240597,4367.9,4367.8,0.026]
[1756895765698,12.44240597,4367.9,4367.8,0.026]
[1756895766113,12.44240597,4367.9,4367.8,1e-08]
[1756895769230,8.08950597,4367.9,4367.8,1e-08]